bitfinex/quotes_BTCUSD_20250410
["timestamp","ask_amount","ask_price","bid_price","bid_amount"]
[1744326527785,0.310784,79550.0,79549.0,0.0003358]
[1744326527982,0.358284,79550.0,79549.0,0.0003358]
[1744326528885,0.012574,79525.0,79524.0,0.41591785]
[1744326529111,0.012574,79525.0,79524.0,0.54282543]
[1744326529322,0.264067,79525.0,79524.0,0.88282543]
[1744326530211,0.310867,79525.0,79524.0,0.75596299]
[1744326530966,0.310867,79525.0,79524.0,0.41596299]
[1744326531167,0.310867,79525.0,79524.0,4.514e-05]
[1744326535904,0.0468,79525.0,79524.0,4.514e-05]
[1744326536126,0.059374,79525.0,79524.0,4.514e-05]
[1744326536342,0.310867,79525.0,79524.0,4.514e-05]
[1744326536746,0.264091,79518.0,79509.0,0.012577]
[1744326536965,0.26414765,79518.0,79510.0,0.13940217]
[1744326537435,0.251521,79516.0,79510.0,0.13940217]
[1744326537827,0.264097,79516.0,79510.0,0.13940217]
[1744326538247,0.26414765,79518.0,79510.0,0.13940217]
[1744326539000,0.26414765,79518.0,79510.0,0.12940217]
[1744326539205,5.665e-05,79518.0,79512.0,0.012576]
[1744326539432,5.665e-05,79518.0,79517.0,0.251518]
[1744326539645,5.665e-05,79518.0,79517.0,0.73100058]
[1744326539862,5.665e-05,79518.0,79517.0,0.74420447]
[1744326541010,5.665e-05,79518.0,79517.0,1.30496232]
[1744326543498,5.665e-05,79518.0,79517.0,2.31866258]
[1744326544066,5.665e-05,79518.0,79517.0,2.30530658]
[1744326544690,5.665e-05,79518.0,79517.0,2.31984743]
[1744326546184,0.0994,79558.0,79552.0,0.01257]
[1744326546392,0.251392,79557.0,79549.0,0.251417]
[1744326546600,0.251398,79555.0,79550.0,0.12690758]
[1744326546808,0.251398,79555.0,79550.0,0.13991267]
[1744326547785,0.263967,79555.0,79550.0,0.13991267]
[1744326548959,0.05005206,79558.0,79556.0,0.012569]
[1744326549167,0.00045206,79558.0,79557.0,0.39126157]
[1744326549407,0.00045206,79558.0,79557.0,0.40383057]
[1744326549584,0.00045206,79558.0,79557.0,0.74383057]
[1744326551750,0.00045206,79558.0,79557.0,0.76714037]
[1744326552831,0.00045206,79558.0,79557.0,0.76214037]
[1744326553043,0.00045206,79558.0,79557.0,0.64687571]
[1744326553484,0.00045206,79558.0,79557.0,0.62356591]
[1744326554559,0.00045206,79558.0,79557.0,0.47876591]
[1744326554757,0.01302106,79558.0,79557.0,0.62356591]
[1744326555185,0.01302106,79558.0,79557.0,0.28356591]
[1744326555396,0.00045206,79558.0,79557.0,0.28356591]
[1744326556377,0.00045206,79558.0,79557.0,1.08752691]
[1744326556674,0.00045206,79558.0,79557.0,1.50338811]
[1744326557343,0.00045206,79558.0,79557.0,2.03903901]
[1744326557533,0.00045206,79558.0,79557.0,2.04559117]
[1744326557767,0.002,79579.0,79578.0,0.603891]
[1744326557970,0.002,79579.0,79578.0,1.29145978]
[1744326558169,0.002,79579.0,79578.0,1.15703299]
[1744326558398,0.002,79579.0,79578.0,1.30183299]
[1744326561613,0.002,79579.0,79578.0,1.03794199]
[1744326562044,0.002,79579.0,79578.0,1.05050799]
[1744326563849,0.002,79579.0,79578.0,1.03790199]
[1744326564049,0.002,79579.0,79578.0,1.40179299]
[1744326565773,0.002,79579.0,79578.0,1.30179299]
[1744326567671,2e-07,79598.0,79597.0,0.803828]
[1744326567925,0.0001679,79621.0,79597.0,0.803828]
[1744326567926,0.0001679,79621.0,79612.0,0.01256]
[1744326568159,0.0001679,79621.0,79612.0,0.4998319]
[1744326568405,0.0001679,79621.0,79612.0,0.87544558]
[1744326568622,0.0001679,79621.0,79612.0,1.11712157]
[1744326568830,0.0001679,79621.0,79612.0,0.88507557]
[1744326569055,0.00030363,79613.0,79612.0,0.62129757]
[1744326569500,0.00030363,79613.0,79612.0,0.64461918]
[1744326569815,0.00030363,79613.0,79612.0,0.62129757]
[1744326570272,0.00030363,79613.0,79612.0,0.63385757]
[1744326570799,0.00030363,79613.0,79612.0,1.04967877]
[1744326571032,0.00030363,79613.0,79612.0,1.03711877]
[1744326572321,0.25151863,79613.0,79612.0,1.03711877]
[1744326572548,0.26407863,79613.0,79612.0,0.91021119]
[1744326573030,0.00030363,79613.0,79612.0,0.91021119]
[1744326574802,0.00030363,79613.0,79612.0,1.04967877]
[1744326576040,0.00030363,79613.0,79612.0,0.89239877]
[1744326576276,0.26407863,79613.0,79612.0,0.00620379]
[1744326576503,0.263868,79585.0,79584.0,0.14468]
[1744326576946,0.0476,79587.0,79584.0,0.27675741]
[1744326577162,0.2513,79586.0,79585.0,0.34]
[1744326577375,0.2513,79586.0,79584.0,0.4158612]
[1744326577376,0.012565,79585.0,79584.0,0.4158612]
[1744326577585,0.012565,79585.0,79584.0,0.42103103]
[1744326578017,0.012563,79597.0,79592.0,0.251279]
[1744326578235,0.263831,79596.0,79590.0,0.012564]
[1744326578446,0.0476,79601.0,79598.0,0.251262]
[1744326578658,0.298855,79601.0,79598.0,0.12690758]
[1744326578928,0.012562,79600.0,79598.0,0.12690758]
[1744326579139,0.26382,79600.0,79599.0,0.00516983]
[1744326579348,0.012562,79600.0,79599.0,0.00516983]
[1744326580464,0.012562,79600.0,79590.0,0.263849]
[1744326580465,0.251265,79597.0,79591.0,0.34]
[1744326580660,0.012563,79595.0,79593.0,0.34]
[1744326580806,0.251271,79596.0,79594.0,0.12690758]
[1744326581018,0.012562,79603.0,79594.0,0.12690758]
[1744326581238,0.012562,79603.0,79595.0,0.00516983]
[1744326581472,0.012562,79603.0,79596.0,0.12690758]
[1744326581634,0.263813,79602.0,79596.0,0.13947058]
[1744326582040,0.263813,79602.0,79597.0,0.00516983]
[1744326582342,0.263813,79602.0,79598.0,0.12690758]
[1744326582874,0.263813,79602.0,79599.0,0.00516983]
[1744326583090,0.263813,79602.0,79599.0,0.13207741]
[1744326583654,0.311417,79601.0,79599.0,0.13207741]
[1744326584136,0.012562,79600.0,79599.0,0.00516983]
[1744326584539,0.311417,79601.0,79595.0,0.4158612]
[1744326584724,0.060162,79601.0,79599.0,0.00516983]
[1744326584935,0.0476,79601.0,79599.0,0.12690758]
[1744326585080,0.251265,79598.0,79595.0,0.4158612]
[1744326585284,0.263831,79596.0,79595.0,0.4158612]
[1744326588527,0.251306,79584.0,79580.0,0.0003358]
[1744326588784,0.012565,79581.0,79580.0,0.12724338]
[1744326589031,0.012565,79581.0,79580.0,0.0003358]
[1744326589032,0.058565,79581.0,79580.0,0.0003358]
[1744326597591,0.012565,79584.0,79580.0,0.0003358]
[1744326597806,0.263878,79582.0,79580.0,0.0003358]
[1744326598026,0.263878,79582.0,79581.0,0.00601254]
[1744326598802,0.012565,79581.0,79580.0,0.0003358]
[1744326599020,0.012565,79581.0,79580.0,0.00634834]
[1744326599219,0.012565,79581.0,79580.0,0.0003358]
[1744326599435,0.00899114,79581.0,79580.0,0.0003358]
[1744326600324,0.05489114,79581.0,79580.0,0.0003358]
[1744326605691,0.00899114,79581.0,79580.0,0.0003358]
[1744326614293,0.00899114,79581.0,79580.0,8e-07]
[1744326614294,0.24963957,79581.0,79580.0,8e-07]
[1744326614550,0.12630885,79567.0,79566.0,6e-07]
[1744326614768,0.40033643,79567.0,79566.0,6e-07]
[1744326614951,0.40033643,79567.0,79566.0,1.4e-07]
[1744326615184,0.40033643,79567.0,79548.0,0.0003358]
[1744326615185,0.0992,79551.0,79548.0,0.0003358]
[1744326615373,0.263987,79549.0,79548.0,0.00078786]
[1744326616353,0.012569,79557.0,79549.0,0.01257]
[1744326616551,0.01257,79554.0,79550.0,0.12690758]
[1744326616726,0.251407,79553.0,79550.0,0.13293384]
[1744326617186,0.251411,79551.0,79550.0,0.13293384]
[1744326618108,0.263981,79551.0,79550.0,0.13293384]
[1744326627531,0.012568,79562.0,79555.0,0.012569]
[1744326627735,0.263957,79559.0,79556.0,0.12690758]
[1744326627942,0.012569,79560.0,79556.0,0.13308223]
[1744326628149,0.012569,79557.0,79556.0,0.00617465]
[1744326628544,0.263981,79551.0,79550.0,0.7558612]
[1744326628746,0.263981,79551.0,79550.0,0.88276878]
[1744326630340,0.251395,79556.0,79551.0,0.01257]
[1744326630566,0.251395,79556.0,79552.0,0.251405]
[1744326630778,0.012567,79573.0,79564.0,0.012568]
[1744326631001,0.012567,79571.0,79566.0,0.012568]
[1744326631319,0.251368,79565.0,79559.0,0.263953]
[1744326631521,0.012568,79566.0,79560.0,0.12690758]
[1744326631735,0.012568,79561.0,79560.0,0.12690758]
[1744326632298,0.012569,79557.0,79555.0,0.34]
[1744326632441,0.012569,79555.0,79554.0,0.14716]
[1744326633043,0.012569,79556.0,79554.0,0.14716]
[1744326633223,0.263966,79556.0,79554.0,0.14716]
[1744326633680,0.012569,79555.0,79554.0,0.14716]
[1744326634256,0.263987,79549.0,79548.0,0.00078786]
[1744326634457,0.01257,79549.0,79548.0,0.48035203]
[1744326634966,0.251414,79550.0,79549.0,0.34]
[1744326635175,0.251414,79550.0,79548.0,0.14035203]
[1744326635176,0.01257,79549.0,79548.0,0.01344445]
[1744326635385,0.01257,79549.0,79548.0,0.00078786]
[1744326639760,0.251414,79550.0,79548.0,0.00078786]
[1744326639915,0.01257,79549.0,79548.0,0.00078786]
[1744326641160,0.01257,79549.0,79548.0,8.6e-07]
[1744326641161,0.10787,79549.0,79548.0,8.6e-07]
[1744326643183,0.05927,79549.0,79548.0,8.6e-07]
[1744326643598,0.01257,79552.0,79548.0,8.6e-07]
[1744326643798,0.263987,79549.0,79548.0,8.6e-07]
[1744326652160,0.313787,79549.0,79548.0,8.6e-07]
[1744326652375,0.359487,79549.0,79548.0,8.6e-07]
[1744326654558,0.01257,79549.0,79548.0,8.6e-07]
[1744326654846,0.263987,79549.0,79548.0,8.6e-07]
[1744326657920,0.264023,79539.0,79534.0,0.012573]
[1744326658121,0.264023,79539.0,79535.0,0.12690758]
[1744326658354,0.264023,79539.0,79535.0,0.13990035]
[1744326658621,0.251454,79538.0,79535.0,0.13990035]
[1744326658821,0.012572,79537.0,79535.0,0.13990035]
[1744326659234,0.251458,79536.0,79535.0,0.13990035]
[1744326659438,0.012572,79537.0,79535.0,0.13990035]
[1744326660078,0.264029,79537.0,79535.0,0.13990035]
[1744326660490,0.012572,79536.0,79535.0,0.13990035]
[1744326661272,0.012572,79536.0,79535.0,0.01299277]
[1744326661466,0.012573,79534.0,79533.0,0.4158612]
[1744326661811,0.012573,79534.0,79533.0,0.54276878]
[1744326662289,0.012573,79534.0,79533.0,0.55571257]
[1744326664505,0.012573,79534.0,79533.0,0.42880499]
[1744326665804,0.012573,79534.0,79533.0,0.01294379]
[1744326666001,0.012573,79534.0,79532.0,0.0003358]
[1744326666204,0.26404,79533.0,79532.0,0.0003358]
[1744326666611,0.30984,79533.0,79532.0,0.0003358]
[1744326666772,0.30984,79533.0,79532.0,8e-07]
[1744326666773,0.48304758,79533.0,79532.0,8e-07]
[1744326666967,0.49758843,79533.0,79532.0,8e-07]
[1744326668872,0.264064,79526.0,79525.0,8e-07]
[1744326669027,0.49761243,79526.0,79525.0,8e-07]
[1744326670685,0.356164,79526.0,79525.0,8e-07]
[1744326676294,0.310364,79526.0,79525.0,8e-07]
[1744326684112,0.264077,79522.0,79521.0,8e-07]
[1744326684558,0.39098458,79522.0,79521.0,8e-07]
[1744326685296,0.39098458,79522.0,79521.0,0.00013565]
[1744326685545,0.012576,79516.0,79515.0,8.5e-07]
[1744326685770,0.15402443,79516.0,79515.0,8.5e-07]
[1744326690036,0.163402,79516.0,79515.0,8.5e-07]
[1744326691919,0.264136,79504.0,79503.0,6.5e-07]
[1744326692133,0.264136,79504.0,79493.0,0.0003358]
[1744326692134,0.26417,79494.0,79493.0,4.5e-07]
[1744326692301,0.26417,79494.0,79493.0,0.00012685]
[1744326692922,0.264183,79490.0,79489.0,8.5e-07]
[1744326693097,0.264183,79490.0,79489.0,5.75e-05]
[1744326694087,0.361083,79490.0,79489.0,5e-07]
[1744326694304,0.361083,79490.0,79483.0,0.000336]
[1744326694305,0.264203,79484.0,79483.0,8e-07]
[1744326694504,0.264203,79484.0,79483.0,0.0001265]
[1744326694505,0.41527265,79484.0,79483.0,0.0001265]
[1744326694948,0.4007318,79484.0,79483.0,0.0001265]
[1744326695309,0.264203,79484.0,79483.0,0.0001265]
[1744326696700,0.27874385,79484.0,79483.0,5e-07]
[1744326696914,0.50255143,79484.0,79483.0,5e-07]
[1744326700260,0.62171117,79484.0,79483.0,5e-07]
[1744326700490,0.62171117,79484.0,79461.0,0.002]
[1744326700491,0.361176,79462.0,79461.0,5e-07]
[1744326700704,0.509256,79462.0,79461.0,5e-07]
[1744326701180,0.361176,79462.0,79461.0,5e-07]
[1744326701425,0.65074443,79462.0,79461.0,5e-07]
[1744326702324,0.66014104,79462.0,79461.0,5e-07]
[1744326703499,0.459496,79462.0,79461.0,5e-07]
[1744326703748,0.264276,79462.0,79461.0,5e-07]
[1744326704702,0.012584,79462.0,79461.0,5e-07]
[1744326704932,0.264276,79462.0,79461.0,0.01398026]
[1744326705136,0.264276,79462.0,79461.0,0.01394026]
[1744326705334,0.264282,79460.0,79459.0,0.0485]
[1744326705769,0.264282,79460.0,79459.0,0.06247317]
[1744326705978,0.264282,79460.0,79459.0,0.0485]
[1744326706547,0.26441742,79460.0,79459.0,0.0485]
[1744326711304,0.26441742,79460.0,79452.0,0.251723]
[1744326711305,0.012586,79452.0,79451.0,0.0001681]
[1744326711747,0.012586,79452.0,79451.0,0.01454815]
[1744326712217,0.012586,79452.0,79451.0,0.0001681]
[1744326712442,0.251716,79455.0,79451.0,0.12707568]
[1744326712639,0.264305,79454.0,79451.0,0.12707568]
[1744326712780,0.264305,79454.0,79452.0,0.01438005]
[1744326712984,0.251723,79453.0,79452.0,0.01438005]
[1744326713770,0.264309,79453.0,79452.0,0.01438005]
[1744326720785,0.012586,79452.0,79451.0,0.0001681]
[1744326721186,0.012586,79452.0,79451.0,0.01475622]
[1744326722340,0.012586,79452.0,79451.0,0.0001681]
[1744326726878,0.251739,79448.0,79445.0,1e-07]
[1744326727088,0.26433,79446.0,79445.0,1e-07]
[1744326727371,0.39123758,79446.0,79445.0,1e-07]
[1744326727574,0.26433,79446.0,79445.0,1e-07]
[1744326731254,0.012587,79445.0,79444.0,0.05]
[1744326732272,0.264363,79436.0,79431.0,0.002]
[1744326733530,0.26449834,79436.0,79431.0,0.002]
[1744326735650,0.26449834,79436.0,79434.0,0.0476]
[1744326736747,0.26449834,79436.0,79431.0,0.002]
[1744326737310,0.00013534,79436.0,79431.0,0.002]
[1744326738206,0.00013534,79436.0,79435.0,0.252114]
[1744326738382,0.00013534,79436.0,79435.0,0.264702]
[1744326738634,0.00013534,79436.0,79435.0,0.27959894]
[1744326738848,0.00013534,79436.0,79435.0,1.40996772]
[1744326739251,0.00013534,79436.0,79435.0,1.45516772]
[1744326739435,0.06549455,79461.0,79456.0,0.25171]
[1744326739647,0.06563017,79461.0,79456.0,0.25171]
[1744326739856,0.32991117,79461.0,79457.0,0.01474366]
[1744326740063,0.012584,79460.0,79457.0,0.01474366]
[1744326740296,0.012584,79460.0,79452.0,0.012586]
[1744326740508,0.00013562,79461.0,79452.0,0.12690758]
[1744326740633,0.012585,79459.0,79453.0,0.01474366]
[1744326740860,0.264292,79458.0,79453.0,0.26646366]
[1744326741067,0.251707,79458.0,79453.0,0.26646366]
[1744326741733,0.012585,79459.0,79454.0,0.251715]
[1744326741935,0.00013562,79461.0,79458.0,0.251704]
[1744326742148,0.251701,79460.0,79455.0,0.251714]
[1744326742353,0.251701,79460.0,79455.0,0.26645766]
[1744326742587,0.012584,79460.0,79455.0,0.251714]
[1744326742820,0.012584,79460.0,79456.0,0.01474366]
[1744326743038,0.00013562,79461.0,79460.0,0.264282]
[1744326743278,0.00013562,79461.0,79460.0,1.19465078]
[1744326743497,0.00013562,79461.0,79460.0,1.20907807]
[1744326745286,0.00013562,79461.0,79460.0,1.47014115]
[1744326746881,0.00013562,79461.0,79460.0,1.22148915]
[1744326747092,0.06483706,79482.0,79481.0,0.251632]
[1744326747317,0.06483706,79482.0,79481.0,0.26591507]
[1744326748431,0.01258,79487.0,79481.0,0.26591507]
[1744326748833,0.01258,79485.0,79481.0,0.01428307]
[1744326749298,0.012581,79483.0,79476.0,0.604227]
[1744326749521,0.26421,79482.0,79478.0,0.34]
[1744326749726,0.26421,79482.0,79479.0,0.12690758]
[1744326750140,0.264203,79484.0,79479.0,0.37854558]
[1744326750495,0.264203,79484.0,79475.0,0.34]
[1744326750496,0.264216,79480.0,79475.0,0.34]
[1744326750701,0.012581,79479.0,79476.0,0.12690758]
[1744326750894,0.264216,79480.0,79476.0,0.12690758]
[1744326753443,0.264222,79479.0,79473.0,0.34]
[1744326753869,0.012582,79477.0,79473.0,0.34]
[1744326754104,0.264222,79479.0,79473.0,0.604239]
[1744326754253,0.012582,79477.0,79473.0,0.34]
[1744326754458,0.264232,79476.0,79473.0,0.34]
[1744326754653,0.264235,79475.0,79473.0,0.34]
[1744326756259,0.012582,79474.0,79473.0,0.34]
[1744326757398,0.264235,79475.0,79473.0,0.34]
[1744326758591,0.264235,79475.0,79470.0,0.34]
[1744326759417,0.264235,79475.0,79470.0,0.591664]
[1744326759662,0.012582,79473.0,79468.0,0.352583]
[1744326760232,0.251662,79472.0,79468.0,0.352583]
[1744326760706,0.264235,79475.0,79470.0,0.264247]
[1744326761243,0.264235,79475.0,79471.0,0.01408926]
[1744326762102,0.264235,79475.0,79471.0,0.35408926]
[1744326762339,0.264238,79474.0,79471.0,0.35408926]
[1744326762527,0.251659,79473.0,79471.0,0.35408926]
[1744326763217,0.012583,79472.0,79471.0,0.01408926]
[1744326763425,0.26426,79467.0,79462.0,0.34]
[1744326763560,0.251677,79467.0,79463.0,0.01408926]
[1744326763768,0.251682,79466.0,79463.0,0.01408926]
[1744326763971,0.012584,79464.0,79463.0,0.01408926]
[1744326764168,0.012584,79464.0,79463.0,0.14099684]
[1744326764455,0.251666,79471.0,79463.0,0.15358084]
[1744326764660,0.251676,79467.0,79464.0,0.17520758]
[1744326764875,0.251682,79466.0,79464.0,0.12690758]
[1744326765251,0.264261,79467.0,79465.0,0.01408926]
[1744326765391,0.012583,79466.0,79465.0,0.01408926]
[1744326765590,0.012583,79466.0,79465.0,0.12690758]
[1744326765930,0.012583,79466.0,79465.0,0.1410611]
[1744326768102,0.012583,79466.0,79461.0,0.1]
[1744326768103,0.264279,79461.0,79460.0,0.00042082]
[1744326768306,0.49922743,79461.0,79460.0,8.2e-07]
[1744326768534,0.264363,79436.0,79429.0,0.0001681]
[1744326770103,0.26481496,79436.0,79429.0,0.0001681]
[1744326772494,0.40626339,79436.0,79431.0,1e-06]
[1744326772692,0.40626339,79436.0,79395.0,0.251904]
[1744326772693,0.251891,79400.0,79395.0,0.251904]
[1744326772925,0.264466,79406.0,79400.0,0.012594]
[1744326773056,0.264466,79406.0,79401.0,0.12690758]
[1744326773712,0.251876,79404.0,79401.0,0.12690758]
[1744326773928,0.012594,79402.0,79401.0,0.46690758]
[1744326774172,0.012594,79402.0,79371.0,0.007]
[1744326774173,0.2645,79395.0,79394.0,0.4176]
[1744326774374,0.251911,79393.0,79387.0,0.25193]
[1744326774584,0.012595,79394.0,79388.0,0.12690758]
[1744326774800,0.012594,79398.0,79388.0,0.12690758]
[1744326774801,0.264463,79406.0,79396.0,0.012595]
[1744326775157,0.26448,79401.0,79397.0,0.12690758]
[1744326775766,0.26448,79401.0,79398.0,0.0098985]
[1744326775991,0.26448,79401.0,79399.0,0.12690758]
[1744326776366,0.264449,79410.0,79402.0,0.264475]
[1744326776573,0.251831,79419.0,79403.0,0.48201929]
[1744326776787,0.012591,79416.0,79403.0,0.48939908]
[1744326776940,0.012592,79412.0,79403.0,0.48939908]
[1744326777141,0.264435,79415.0,79403.0,0.48939908]
[1744326777368,0.012592,79413.0,79403.0,0.48939908]
[1744326777982,0.264422,79419.0,79403.0,0.90699908]
[1744326778182,0.264426,79417.0,79403.0,0.90699908]
[1744326778400,0.264434,79415.0,79403.0,0.90699908]
[1744326779240,0.264441,79413.0,79403.0,0.90699908]
[1744326779397,0.012592,79412.0,79403.0,0.90699908]
[1744326779594,0.012593,79406.0,79403.0,0.89440608]
[1744326779813,0.251874,79405.0,79403.0,0.7674985]
[1744326780155,0.06074468,79404.0,79403.0,0.0098985]
[1744326780443,0.06074468,79404.0,79403.0,0.0001]
[1744326783300,0.18765226,79404.0,79403.0,0.0001]
[1744326783674,0.06074468,79404.0,79403.0,0.0001]
[1744326784797,0.0601679,79404.0,79403.0,0.0001]
[1744326788579,0.058893,79406.0,79403.0,0.0001]
[1744326788787,0.012592,79415.0,79406.0,0.012593]
[1744326788990,0.0477,79421.0,79413.0,0.251847]
[1744326788991,0.012591,79420.0,79413.0,0.251847]
[1744326789189,0.264432,79416.0,79409.0,0.012593]
[1744326789393,0.012592,79414.0,79410.0,0.13563912]
[1744326790055,0.264439,79414.0,79410.0,0.13563912]
[1744326790396,0.251851,79412.0,79410.0,0.13563912]
[1744326790605,0.012592,79413.0,79410.0,0.13563912]
[1744326791934,0.012591,79416.0,79410.0,0.13563912]
[1744326792157,0.012591,79416.0,79411.0,0.251854]
[1744326792360,0.012592,79413.0,79411.0,0.12690758]
[1744326792546,0.012592,79412.0,79411.0,0.12690758]
[1744326793617,0.01259,79426.0,79420.0,0.251825]
[1744326793873,0.01259,79426.0,79418.0,0.251832]
[1744326793874,0.264406,79424.0,79418.0,0.251832]
[1744326793995,0.264414,79421.0,79418.0,0.12690758]
[1744326794454,0.264419,79420.0,79418.0,0.12690758]
[1744326795412,0.264443,79412.0,79411.0,0.0001]
[1744326805368,0.313943,79412.0,79411.0,0.0001]
[1744326808736,0.362743,79412.0,79411.0,0.0001]
[1744326813345,0.264469,79404.0,79392.0,0.34]
[1744326813841,0.264469,79404.0,79392.0,0.591912]
[1744326814056,0.264469,79404.0,79392.0,0.34]
[1744326814261,0.264469,79404.0,79390.0,0.34]
[1744326815024,0.264469,79404.0,79392.0,0.34]
[1744326815251,0.264469,79404.0,79393.0,0.251908]
[1744326815449,0.264469,79404.0,79392.0,0.34]
[1744326815450,0.264469,79404.0,79395.0,0.264497]
[1744326815628,0.264469,79404.0,79395.0,0.012595]
[1744326815825,0.264469,79404.0,79396.0,0.012595]
[1744326816095,0.251856,79411.0,79406.0,0.012593]
[1744326816330,0.251864,79408.0,79403.0,0.00023562]
[1744326816512,0.251864,79408.0,79407.0,0.00886445]
[1744326816753,0.251864,79408.0,79403.0,0.00023562]
[1744326816907,0.251864,79408.0,79407.0,0.00886445]
[1744326817112,0.251875,79405.0,79403.0,0.00023562]
[1744326817308,0.012593,79406.0,79403.0,0.00023562]
[1744326819844,0.264465,79406.0,79403.0,0.00023562]
[1744326820221,0.264455,79409.0,79403.0,0.01282862]
[1744326820425,0.012591,79417.0,79410.0,0.012592]
[1744326820628,0.012592,79415.0,79411.0,0.13577203]
[1744326820848,0.251845,79414.0,79411.0,0.13577203]
[1744326821192,0.06139,79424.0,79411.0,0.13577203]
[1744326821443,0.251833,79418.0,79413.0,0.251846]
[1744326821638,0.251833,79418.0,79411.0,0.14836403]
[1744326821639,0.264425,79418.0,79414.0,0.12690758]
[1744326821916,0.264405,79424.0,79414.0,0.38751356]
[1744326821917,0.26441,79422.0,79414.0,0.38751356]
[1744326822160,0.012591,79420.0,79415.0,0.251838]
[1744326822372,0.264418,79420.0,79416.0,0.12690758]
[1744326822594,0.264418,79420.0,79416.0,0.13554587]
[1744326823557,0.012591,79417.0,79416.0,0.13554587]
[1744326823753,0.012591,79417.0,79416.0,0.00863829]
[1744326823962,0.012591,79417.0,79408.0,0.352593]
[1744326823963,0.251838,79416.0,79411.0,0.34]
[1744326824166,0.251838,79416.0,79412.0,0.12690758]
[1744326824368,0.251838,79416.0,79412.0,0.13554587]
[1744326824550,0.264429,79416.0,79412.0,0.13554587]
[1744326825628,0.012591,79416.0,79412.0,0.13554587]
[1744326825831,0.012591,79421.0,79412.0,0.39998587]
[1744326826118,0.753483,79447.0,79412.0,0.39998587]
[1744326826119,0.01259,79426.0,79415.0,0.012592]
[1744326826316,0.25181,79425.0,79420.0,0.251825]
[1744326826547,0.2644,79425.0,79420.0,0.251825]
[1744326826757,0.264404,79424.0,79421.0,0.00862574]
[1744326826930,0.251819,79422.0,79421.0,0.00862574]
[1744326827134,0.251819,79422.0,79417.0,0.34]
[1744326827434,0.264404,79424.0,79421.0,0.00862574]
[1744326827669,0.264411,79422.0,79418.0,0.12690758]
[1744326828555,0.264416,79421.0,79418.0,0.12690758]
[1744326828764,0.264419,79420.0,79418.0,0.12690758]
[1744326829249,0.012591,79419.0,79418.0,0.12690758]
[1744326829714,0.264469,79404.0,79403.0,0.00023562]
[1744326830024,0.363169,79404.0,79403.0,0.00023562]
[1744326830225,0.264456,79409.0,79403.0,0.00023562]
[1744326830471,0.012593,79404.0,79403.0,0.00023562]
[1744326839692,0.251876,79404.0,79403.0,0.00023562]
[1744326839900,0.0453,79417.0,79411.0,0.264446]
[1744326840127,0.251843,79415.0,79412.0,0.00735687]
[1744326840363,0.264439,79414.0,79412.0,0.13426445]
[1744326840578,0.264439,79414.0,79413.0,0.00735687]
[1744326841047,0.012591,79416.0,79413.0,0.00735687]
[1744326841197,0.264429,79416.0,79414.0,0.12690758]
[1744326841625,0.012591,79417.0,79414.0,0.12690758]
[1744326841832,0.264422,79419.0,79415.0,0.00735687]
[1744326842035,0.264428,79417.0,79415.0,0.00735687]
[1744326842243,0.264429,79416.0,79415.0,0.00735687]
[1744326842423,0.012592,79415.0,79414.0,0.12690758]
[1744326842618,0.012592,79415.0,79414.0,0.13426445]
[1744326842885,0.012593,79409.0,79407.0,0.02352697]
[1744326843055,0.251859,79410.0,79408.0,0.00735687]
[1744326843240,0.251864,79408.0,79404.0,0.591874]
[1744326843582,0.012593,79409.0,79404.0,0.591874]
[1744326843583,0.264456,79409.0,79405.0,0.13426445]
[1744326848226,0.251859,79410.0,79405.0,0.38613445]
[1744326849283,0.012592,79412.0,79406.0,0.251867]
[1744326849284,0.264443,79412.0,79406.0,0.251867]
[1744326849483,0.264443,79412.0,79406.0,0.37877458]
[1744326849837,0.01259,79422.0,79413.0,0.012592]
[1744326850071,0.251816,79423.0,79419.0,0.251826]
[1744326850248,0.251822,79421.0,79416.0,0.251836]
[1744326850449,0.264413,79421.0,79420.0,0.00735687]
[1744326850607,0.264418,79420.0,79414.0,0.12690758]
[1744326850801,0.264418,79420.0,79414.0,0.37874958]
[1744326851009,0.251813,79424.0,79418.0,0.251832]
[1744326851336,0.264403,79424.0,79418.0,0.251832]
[1744326851717,0.01259,79425.0,79420.0,0.251825]
[1744326851927,0.264401,79425.0,79421.0,0.12690758]
[1744326852096,0.012589,79429.0,79423.0,0.251813]
[1744326852236,0.264391,79428.0,79424.0,0.0071127]
[1744326852445,0.012589,79429.0,79424.0,0.251812]
[1744326852811,0.012589,79429.0,79425.0,0.0071127]
[1744326853194,0.2518,79428.0,79425.0,0.0071127]
[1744326853398,0.012589,79429.0,79425.0,0.0071127]
[1744326853589,0.012589,79432.0,79426.0,0.251806]
[1744326853818,0.012589,79432.0,79426.0,0.25889418]
[1744326854020,0.012589,79433.0,79427.0,0.12690758]
[1744326854194,0.251783,79434.0,79427.0,0.12690758]
[1744326854195,0.0463,79438.0,79431.0,0.25179]
[1744326854403,0.000336,79448.0,79432.0,0.13949658]
[1744326854404,0.012587,79443.0,79432.0,0.13949658]
[1744326854745,0.25178,79435.0,79433.0,0.0235267]
[1744326854949,0.012589,79434.0,79433.0,0.0235267]
[1744326855150,0.012589,79434.0,79429.0,0.0235267]
[1744326855151,0.264382,79431.0,79429.0,0.0235267]
[1744326855573,0.012589,79431.0,79426.0,0.251803]
[1744326855753,0.26438,79431.0,79426.0,0.251803]
[1744326855951,0.312673,79433.0,79426.0,0.251803]
[1744326856159,0.312673,79433.0,79427.0,0.0235267]
[1744326856362,0.312673,79433.0,79420.0,0.012591]
[1744326856363,0.106791,79418.0,79417.0,0.00013562]
[1744326865021,0.012591,79418.0,79417.0,0.00013562]
[1744326865763,0.264419,79419.0,79417.0,0.00013562]
[1744326866068,0.012591,79418.0,79417.0,0.00013562]
[1744326869096,0.059991,79418.0,79417.0,0.00013562]
[1744326871860,0.108591,79418.0,79417.0,0.00013562]
[1744326872055,0.23549858,79418.0,79417.0,0.00013562]
[1744326883380,0.108591,79418.0,79417.0,0.00013562]
[1744326883607,0.17122074,79418.0,79417.0,0.00013562]
[1744326886325,0.108591,79418.0,79417.0,0.00013562]
[1744326887397,0.25003943,79418.0,79417.0,6.2e-07]
[1744326888835,0.59003943,79418.0,79417.0,6.2e-07]